[Event "Titled Tuesday Blitz April 25 Early 2023"]
[White "Lopez Del Alamo, Antonio"]
[Black "Girya, Olga"]
[WhiteFideId "2227339"]
[BlackFideId "4195752"]
[WhiteElo "2175"]
[BlackElo "2263"]
[Result "0-1"]
[Round "01"]
[TimeControl "180+2"]
[Date "2023.04.25"]
[WhiteClock "0:00:02"]
[BlackClock "0:00:05"]

1. e4 {[%clk 0:02:59]}  e5 {[%clk 0:02:59]} 2. Bc4 {[%clk 0:02:53]}  Nf6 {[%clk 0:02:58]} 3. d3 {[%clk 0:02:53]}  Bc5 {[%clk 0:02:57]} 4. Nc3 {[%clk 0:02:53]}  c6 {[%clk 0:02:57]} 5. Nf3 {[%clk 0:02:52]}  d6 {[%clk 0:02:56]} 6. Ne2 {[%clk 0:02:47]}  Nbd7 {[%clk 0:02:48]} 7. Ng3 {[%clk 0:02:45]}  d5 {[%clk 0:02:45]} 8. Bb3 {[%clk 0:02:44]}  a5 {[%clk 0:02:44]} 9. a3 {[%clk 0:02:41]}  O-O {[%clk 0:02:37]} 10. O-O {[%clk 0:02:41]}  Re8 {[%clk 0:02:37]} 11. h3 {[%clk 0:02:34]}  Bf8 {[%clk 0:02:36]} 12. Qe2 {[%clk 0:02:31]}  Nc5 {[%clk 0:02:35]} 13. Ba2 {[%clk 0:02:31]}  dxe4 {[%clk 0:02:23]} 14. dxe4 {[%clk 0:02:29]}  Be6 {[%clk 0:02:16]} 15. Bxe6 {[%clk 0:02:25]}  Nxe6 {[%clk 0:01:59]} 16. a4 {[%clk 0:02:14]}  Qc7 {[%clk 0:01:58]} 17. Qc4 {[%clk 0:02:09]}  Rad8 {[%clk 0:01:56]} 18. Be3 {[%clk 0:02:05]}  Nd7 {[%clk 0:01:50]} 19. Rfd1 {[%clk 0:02:01]}  Ndc5 {[%clk 0:01:43]} 20. Nf5 {[%clk 0:01:42]}  b6 {[%clk 0:01:34]} 21. Ng5 {[%clk 0:01:25]}  Nxg5 {[%clk 0:01:27]} 22. Bxg5 {[%clk 0:01:24]}  Rxd1+ {[%clk 0:01:27]} 23. Rxd1 {[%clk 0:01:24]}  Ne6 {[%clk 0:01:27]} 24. Be3 {[%clk 0:01:21]}  Bc5 {[%clk 0:01:26]} 25. Bxc5 {[%clk 0:01:02]}  Nxc5 {[%clk 0:01:25]} 26. f3 {[%clk 0:01:03]}  Rd8 {[%clk 0:01:23]} 27. Rxd8+ {[%clk 0:00:29]}  Qxd8 {[%clk 0:01:24]} 28. b3 {[%clk 0:00:27]}  Kf8 {[%clk 0:01:19]} 29. Qe2 {[%clk 0:00:21]}  g6 {[%clk 0:01:17]} 30. Ne3 {[%clk 0:00:20]}  Kg7 {[%clk 0:01:15]} 31. Kh2 {[%clk 0:00:20]}  Ne6 {[%clk 0:01:14]} 32. Nc4 {[%clk 0:00:19]}  f6 {[%clk 0:01:13]} 33. Qe3 {[%clk 0:00:14]}  b5 {[%clk 0:01:13]} 34. axb5 {[%clk 0:00:12]}  cxb5 {[%clk 0:01:14]} 35. Na3 {[%clk 0:00:10]}  Qd4 {[%clk 0:01:11]} 36. Qe2 {[%clk 0:00:08]}  b4 {[%clk 0:01:10]} 37. Nc4 {[%clk 0:00:08]}  Nf4 {[%clk 0:01:09]} 38. Qe1 {[%clk 0:00:06]}  h5 {[%clk 0:01:06]} 39. h4 {[%clk 0:00:05]}  Qd8 {[%clk 0:00:39]} 40. Qd2 {[%clk 0:00:04]}  Qxd2 {[%clk 0:00:33]} 41. Nxd2 {[%clk 0:00:05]}  Ne2 {[%clk 0:00:33]} 42. Nc4 {[%clk 0:00:05]}  Nd4 {[%clk 0:00:32]} 43. Nxa5 {[%clk 0:00:05]}  Nxc2 {[%clk 0:00:33]} 44. g4 {[%clk 0:00:01]}  Nd4 {[%clk 0:00:30]} 45. Kg3 {[%clk 0:00:01]}  Kf7 {[%clk 0:00:29]} 46. g5 {[%clk 0:00:01]}  fxg5 {[%clk 0:00:24]} 47. hxg5 {[%clk 0:00:02]}  Ke6 {[%clk 0:00:25]} 48. Kf2 {[%clk 0:00:02]}  Kd6 {[%clk 0:00:23]} 49. Ke3 {[%clk 0:00:02]}  Kc5 {[%clk 0:00:22]} 50. Nc4 {[%clk 0:00:02]}  Nc6 {[%clk 0:00:11]} 51. f4 {[%clk 0:00:01]}  exf4+ {[%clk 0:00:08]} 52. Kxf4 {[%clk 0:00:02]}  Nd4 {[%clk 0:00:05]} 53. Ke5 {[%clk 0:00:02]}  Nxb3 {[%clk 0:00:05]} 54. Ne3 {[%clk 0:00:02]}  Nd2 {[%clk 0:00:05]} 0-1


[Site "https://www.chess.com"]

[Event "Titled Tuesday Blitz April 25 Early 2023"]
[White "Borgaonkar Akshay"]
[Black "Kalajzic, Ivan"]
[WhiteFideId "25639110"]
[BlackFideId "14506378"]
[WhiteElo "2063"]
[BlackElo "2203"]
[Result "1/2-1/2"]
[Round "01"]
[TimeControl "180+2"]
[Date "2023.04.25"]
[WhiteClock "0:00:04"]
[BlackClock "0:00:29"]

1. Nf3 {[%clk 0:02:58]}  Nc6 {[%clk 0:02:59]} 2. d4 {[%clk 0:02:54]}  d5 {[%clk 0:02:58]} 3. Bf4 {[%clk 0:02:51]}  Bg4 {[%clk 0:02:58]} 4. e3 {[%clk 0:02:51]}  e6 {[%clk 0:02:57]} 5. Be2 {[%clk 0:02:51]}  Bd6 {[%clk 0:02:57]} 6. Ne5 {[%clk 0:02:49]}  Bxe2 {[%clk 0:02:56]} 7. Qxe2 {[%clk 0:02:50]}  Bxe5 {[%clk 0:02:50]} 8. dxe5 {[%clk 0:02:51]}  Nge7 {[%clk 0:02:48]} 9. Nd2 {[%clk 0:02:49]}  O-O {[%clk 0:02:48]} 10. h4 {[%clk 0:02:47]}  Ng6 {[%clk 0:02:45]} 11. Nf3 {[%clk 0:02:46]}  d4 {[%clk 0:02:40]} 12. h5 {[%clk 0:02:43]}  Nxf4 {[%clk 0:02:36]} 13. exf4 {[%clk 0:02:42]}  Qd5 {[%clk 0:02:36]} 14. h6 {[%clk 0:02:37]}  g6 {[%clk 0:02:34]} 15. a3 {[%clk 0:02:34]}  Rfd8 {[%clk 0:02:31]} 16. Rd1 {[%clk 0:02:33]}  a6 {[%clk 0:02:20]} 17. Kf1 {[%clk 0:02:30]}  Qb5 {[%clk 0:02:18]} 18. Qxb5 {[%clk 0:02:16]}  axb5 {[%clk 0:02:19]} 19. Rd3 {[%clk 0:02:11]}  Ra4 {[%clk 0:02:14]} 20. Ke2 {[%clk 0:02:10]}  Rc4 {[%clk 0:02:06]} 21. Rc1 {[%clk 0:01:59]}  b4 {[%clk 0:01:36]} 22. Nd2 {[%clk 0:01:56]}  Rc5 {[%clk 0:01:32]} 23. Ne4 {[%clk 0:01:51]}  Rb5 {[%clk 0:01:30]} 24. a4 {[%clk 0:01:50]}  Ra5 {[%clk 0:01:29]} 25. b3 {[%clk 0:01:49]}  Ne7 {[%clk 0:01:25]} 26. Rcd1 {[%clk 0:01:46]}  c5 {[%clk 0:01:24]} 27. Nd6 {[%clk 0:01:43]}  Nd5 {[%clk 0:01:20]} 28. Nxb7 {[%clk 0:01:42]}  Nxf4+ {[%clk 0:01:20]} 29. Kf3 {[%clk 0:01:38]}  Nxd3 {[%clk 0:01:19]} 30. cxd3 {[%clk 0:01:28]}  Raa8 {[%clk 0:01:14]} 31. Nxd8 {[%clk 0:01:27]}  Rxd8 {[%clk 0:01:15]} 32. Rc1 {[%clk 0:01:27]}  Rc8 {[%clk 0:01:13]} 33. Ke4 {[%clk 0:01:24]}  Kf8 {[%clk 0:01:12]} 34. f4 {[%clk 0:00:53]}  Ke7 {[%clk 0:01:10]} 35. g4 {[%clk 0:00:54]}  f5+ {[%clk 0:01:08]} 36. exf6+ {[%clk 0:00:52]}  Kxf6 {[%clk 0:01:09]} 37. a5 {[%clk 0:00:51]}  g5 {[%clk 0:01:07]} 38. fxg5+ {[%clk 0:00:39]}  Kxg5 {[%clk 0:01:07]} 39. a6 {[%clk 0:00:40]}  Kxg4 {[%clk 0:00:55]} 40. a7 {[%clk 0:00:40]}  Ra8 {[%clk 0:00:52]} 41. Rxc5 {[%clk 0:00:40]}  Rxa7 {[%clk 0:00:52]} 42. Kxd4 {[%clk 0:00:40]}  Ra6 {[%clk 0:00:41]} 43. Rc7 {[%clk 0:00:18]}  e5+ {[%clk 0:00:41]} 44. Kc4 {[%clk 0:00:15]}  Rxh6 {[%clk 0:00:41]} 45. Kxb4 {[%clk 0:00:16]}  Rh1 {[%clk 0:00:38]} 46. Rg7+ {[%clk 0:00:13]}  Kf3 {[%clk 0:00:37]} 47. Kc4 {[%clk 0:00:13]}  h5 {[%clk 0:00:37]} 48. b4 {[%clk 0:00:12]}  h4 {[%clk 0:00:37]} 49. b5 {[%clk 0:00:12]}  h3 {[%clk 0:00:37]} 50. Kd5 {[%clk 0:00:10]}  h2 {[%clk 0:00:35]} 51. Rh7 {[%clk 0:00:10]}  Ke3 {[%clk 0:00:33]} 52. Kxe5 {[%clk 0:00:06]}  Kxd3 {[%clk 0:00:33]} 53. Kd5 {[%clk 0:00:06]}  Kc3 {[%clk 0:00:32]} 54. Kc5 {[%clk 0:00:06]}  Kb3 {[%clk 0:00:32]} 55. Kb6 {[%clk 0:00:06]}  Ka4 {[%clk 0:00:32]} 56. Rh4+ {[%clk 0:00:06]}  Kb3 {[%clk 0:00:32]} 57. Kb7 {[%clk 0:00:05]}  Kc3 {[%clk 0:00:30]} 58. b6 {[%clk 0:00:05]}  Kd3 {[%clk 0:00:30]} 59. Kb8 {[%clk 0:00:05]}  Ke3 {[%clk 0:00:31]} 60. b7 {[%clk 0:00:05]}  Kf3 {[%clk 0:00:29]} 61. Rh8 {[%clk 0:00:04]}  Kg3 {[%clk 0:00:28]} 62. Rg8+ {[%clk 0:00:05]}  Kf2 {[%clk 0:00:28]} 63. Rf8+ {[%clk 0:00:03]}  Kg2 {[%clk 0:00:28]} 64. Rg8+ {[%clk 0:00:03]}  Kf2 {[%clk 0:00:28]} 65. Rf8+ {[%clk 0:00:03]}  Kg2 {[%clk 0:00:29]} 66. Rg8+ {[%clk 0:00:04]}  Kf2 {[%clk 0:00:29]} 1/2-1/2


[Site "https://www.chess.com"]

[Event "Titled Tuesday Blitz April 25 Early 2023"]
[White "Souleidis, Georgios"]
[Black "Karthik Sai Ch"]
[WhiteFideId "4206827"]
[BlackFideId "46649484"]
[WhiteElo "2401"]
[BlackElo "2003"]
[Result "1/2-1/2"]
[Round "01"]
[TimeControl "180+2"]
[Date "2023.04.25"]
[WhiteClock "0:00:34"]
[BlackClock "0:01:14"]

1. e4 {[%clk 0:02:58]}  c6 {[%clk 0:02:59]} 2. Nc3 {[%clk 0:02:58]}  d5 {[%clk 0:02:59]} 3. Nf3 {[%clk 0:02:59]}  dxe4 {[%clk 0:02:59]} 4. Nxe4 {[%clk 0:03:00]}  Nf6 {[%clk 0:02:59]} 5. Qe2 {[%clk 0:03:00]}  Nxe4 {[%clk 0:02:57]} 6. Qxe4 {[%clk 0:03:01]}  Nd7 {[%clk 0:02:57]} 7. d4 {[%clk 0:02:48]}  Nf6 {[%clk 0:02:56]} 8. Qd3 {[%clk 0:02:48]}  g6 {[%clk 0:02:55]} 9. Bg5 {[%clk 0:02:39]}  Bg7 {[%clk 0:02:54]} 10. O-O-O {[%clk 0:02:25]}  Bf5 {[%clk 0:02:50]} 11. Qe3 {[%clk 0:02:19]}  O-O {[%clk 0:02:44]} 12. Bd3 {[%clk 0:02:16]}  Be6 {[%clk 0:02:42]} 13. Kb1 {[%clk 0:02:12]}  Nd5 {[%clk 0:02:39]} 14. Qd2 {[%clk 0:02:09]}  Qb6 {[%clk 0:02:33]} 15. a3 {[%clk 0:01:38]}  f6 {[%clk 0:02:30]} 16. Be3 {[%clk 0:01:23]}  Nxe3 {[%clk 0:02:29]} 17. Qxe3 {[%clk 0:01:23]}  Bf7 {[%clk 0:02:22]} 18. Qxe7 {[%clk 0:01:20]}  f5 {[%clk 0:02:21]} 19. Qc5 {[%clk 0:01:16]}  Qc7 {[%clk 0:02:14]} 20. Ne5 {[%clk 0:01:14]}  Rad8 {[%clk 0:02:11]} 21. f4 {[%clk 0:01:08]}  Rd5 {[%clk 0:02:08]} 22. Qc3 {[%clk 0:01:07]}  Bxe5 {[%clk 0:02:01]} 23. dxe5 {[%clk 0:01:07]}  Rfd8 {[%clk 0:02:00]} 24. Be2 {[%clk 0:01:07]}  Rxd1+ {[%clk 0:01:58]} 25. Rxd1 {[%clk 0:01:08]}  Rxd1+ {[%clk 0:01:58]} 26. Bxd1 {[%clk 0:01:09]}  Qd7 {[%clk 0:01:58]} 27. Qd3 {[%clk 0:01:09]}  Bd5 {[%clk 0:01:53]} 28. Bf3 {[%clk 0:01:03]}  Be6 {[%clk 0:01:51]} 29. Qxd7 {[%clk 0:01:03]}  Bxd7 {[%clk 0:01:52]} 30. b4 {[%clk 0:01:03]}  Kf7 {[%clk 0:01:52]} 31. c4 {[%clk 0:01:01]}  Ke6 {[%clk 0:01:52]} 32. Kb2 {[%clk 0:01:02]}  h6 {[%clk 0:01:50]} 33. Kc3 {[%clk 0:01:01]}  g5 {[%clk 0:01:49]} 34. g3 {[%clk 0:01:02]}  Bc8 {[%clk 0:01:47]} 35. Kd4 {[%clk 0:01:02]}  Bd7 {[%clk 0:01:43]} 36. Bg2 {[%clk 0:00:54]}  b6 {[%clk 0:01:41]} 37. c5 {[%clk 0:00:54]}  b5 {[%clk 0:01:40]} 38. Bf3 {[%clk 0:00:54]}  g4 {[%clk 0:01:39]} 39. Bd1 {[%clk 0:00:54]}  h5 {[%clk 0:01:38]} 40. a4 {[%clk 0:00:51]}  a6 {[%clk 0:01:37]} 41. Bb3+ {[%clk 0:00:46]}  Ke7 {[%clk 0:01:36]} 42. a5 {[%clk 0:00:45]}  Be6 {[%clk 0:01:31]} 43. Bc2 {[%clk 0:00:43]}  Kd7 {[%clk 0:01:29]} 44. Bd3 {[%clk 0:00:43]}  Ke7 {[%clk 0:01:29]} 45. Bf1 {[%clk 0:00:43]}  Kd7 {[%clk 0:01:29]} 46. h3 {[%clk 0:00:43]}  Ke7 {[%clk 0:01:28]} 47. hxg4 {[%clk 0:00:43]}  hxg4 {[%clk 0:01:28]} 48. Bg2 {[%clk 0:00:42]}  Kd7 {[%clk 0:01:27]} 49. Bh1 {[%clk 0:00:43]}  Kc7 {[%clk 0:01:25]} 50. Bg2 {[%clk 0:00:43]}  Kd7 {[%clk 0:01:25]} 51. Bf1 {[%clk 0:00:44]}  Kc7 {[%clk 0:01:25]} 52. Bd3 {[%clk 0:00:44]}  Kd7 {[%clk 0:01:25]} 53. Kc3 {[%clk 0:00:42]}  Kc7 {[%clk 0:01:24]} 54. Bc2 {[%clk 0:00:43]}  Kd7 {[%clk 0:01:24]} 55. Bb3 {[%clk 0:00:43]}  Bxb3 {[%clk 0:01:23]} 56. Kxb3 {[%clk 0:00:44]}  Ke6 {[%clk 0:01:23]} 57. Kc3 {[%clk 0:00:44]}  Kd5 {[%clk 0:01:23]} 58. Kd3 {[%clk 0:00:45]}  Ke6 {[%clk 0:01:22]} 59. Ke3 {[%clk 0:00:45]}  Ke7 {[%clk 0:01:20]} 60. Kd3 {[%clk 0:00:27]}  Kd7 {[%clk 0:01:18]} 61. Kc3 {[%clk 0:00:28]}  Ke7 {[%clk 0:01:18]} 62. Kd4 {[%clk 0:00:24]}  Ke6 {[%clk 0:01:16]} 63. Ke3 {[%clk 0:00:24]}  Ke7 {[%clk 0:01:15]} 64. Kd2 {[%clk 0:00:25]}  Kd7 {[%clk 0:01:13]} 65. Kc1 {[%clk 0:00:26]}  Ke6 {[%clk 0:01:13]} 66. Kb2 {[%clk 0:00:27]}  Ke7 {[%clk 0:01:12]} 67. Kb1 {[%clk 0:00:27]}  Kd7 {[%clk 0:01:13]} 68. Ka2 {[%clk 0:00:28]}  Ke6 {[%clk 0:01:13]} 69. Kb3 {[%clk 0:00:29]}  Ke7 {[%clk 0:01:13]} 70. Ka3 {[%clk 0:00:30]}  Kd7 {[%clk 0:01:13]} 71. Kb2 {[%clk 0:00:31]}  Ke7 {[%clk 0:01:13]} 72. Ka1 {[%clk 0:00:32]}  Kd7 {[%clk 0:01:14]} 73. Kb1 {[%clk 0:00:33]}  Ke7 {[%clk 0:01:14]} 74. Kc1 {[%clk 0:00:34]}  Kd7 {[%clk 0:01:14]} 75. Kb2 {[%clk 0:00:34]}  Ke7 {[%clk 0:01:14]} 1/2-1/2


[Site "https://www.chess.com"]

[Event "Titled Tuesday Blitz April 25 Early 2023"]
[White "Derichs, Roger"]
[Black "Manukyan, Sargis A."]
[WhiteFideId "4630076"]
[BlackFideId "13303970"]
[WhiteElo "2340"]
[BlackElo "2187"]
[Result "0-1"]
[Round "01"]
[TimeControl "180+2"]
[Date "2023.04.25"]
[WhiteClock "0:00:47"]
[BlackClock "0:00:54"]

1. d4 {[%clk 0:02:59]}  d5 {[%clk 0:02:52]} 2. c4 {[%clk 0:02:59]}  e6 {[%clk 0:02:51]} 3. Nf3 {[%clk 0:02:59]}  Nf6 {[%clk 0:02:49]} 4. g3 {[%clk 0:03:00]}  Be7 {[%clk 0:02:49]} 5. Bg2 {[%clk 0:02:59]}  O-O {[%clk 0:02:49]} 6. Nc3 {[%clk 0:02:59]}  dxc4 {[%clk 0:02:47]} 7. Ne5 {[%clk 0:02:59]}  Nc6 {[%clk 0:02:45]} 8. Bxc6 {[%clk 0:02:58]}  bxc6 {[%clk 0:02:46]} 9. Nxc6 {[%clk 0:02:58]}  Qe8 {[%clk 0:02:34]} 10. Nxe7+ {[%clk 0:02:59]}  Qxe7 {[%clk 0:02:35]} 11. Qa4 {[%clk 0:02:59]}  c5 {[%clk 0:02:34]} 12. dxc5 {[%clk 0:02:48]}  Qxc5 {[%clk 0:02:31]} 13. Be3 {[%clk 0:02:44]}  Qc7 {[%clk 0:02:26]} 14. f3 {[%clk 0:02:41]}  Bd7 {[%clk 0:02:20]} 15. Qc2 {[%clk 0:02:34]}  e5 {[%clk 0:02:16]} 16. O-O {[%clk 0:02:24]}  Bh3 {[%clk 0:02:14]} 17. Rf2 {[%clk 0:02:19]}  h6 {[%clk 0:02:10]} 18. Rd1 {[%clk 0:02:16]}  Rfd8 {[%clk 0:02:09]} 19. g4 {[%clk 0:01:57]}  Rxd1+ {[%clk 0:02:01]} 20. Qxd1 {[%clk 0:01:56]}  e4 {[%clk 0:02:02]} 21. Qc2 {[%clk 0:01:37]}  exf3 {[%clk 0:01:57]} 22. exf3 {[%clk 0:01:37]}  Re8 {[%clk 0:01:56]} 23. Qd2 {[%clk 0:01:31]}  Rd8 {[%clk 0:01:24]} 24. Qc1 {[%clk 0:01:28]}  h5 {[%clk 0:01:20]} 25. Bf4 {[%clk 0:01:16]}  Qc6 {[%clk 0:01:20]} 26. g5 {[%clk 0:01:11]}  Nd5 {[%clk 0:01:17]} 27. Bd2 {[%clk 0:00:58]}  Nxc3 {[%clk 0:01:15]} 28. Bxc3 {[%clk 0:00:59]}  Qd5 {[%clk 0:01:12]} 29. Qd2 {[%clk 0:00:47]}  Qxg5+ {[%clk 0:00:54]} 0-1


[Site "https://www.chess.com"]

[Event "Titled Tuesday Blitz April 25 Early 2023"]
[White "Kucuksari, Kaan"]
[Black "mohsengabr2002"]
[WhiteFideId "6380166"]
[WhiteElo "2364"]
[BlackElo "2340"]
[Result "1-0"]
[Round "01"]
[TimeControl "180+2"]
[Date "2023.04.25"]
[WhiteClock "0:00:30"]
[BlackClock "0:01:38"]

1. e4 {[%clk 0:02:59]}  c5 {[%clk 0:02:56]} 2. Nf3 {[%clk 0:02:59]}  d6 {[%clk 0:02:55]} 3. d4 {[%clk 0:02:59]}  cxd4 {[%clk 0:02:55]} 4. Nxd4 {[%clk 0:03:00]}  a6 {[%clk 0:02:55]} 5. Nc3 {[%clk 0:03:00]}  e5 {[%clk 0:02:55]} 6. Nb3 {[%clk 0:02:58]}  Be7 {[%clk 0:02:52]} 7. Be2 {[%clk 0:02:55]}  Qc7 {[%clk 0:02:50]} 8. Nd5 {[%clk 0:02:54]}  Qd8 {[%clk 0:02:50]} 9. Be3 {[%clk 0:02:53]}  Nd7 {[%clk 0:02:50]} 10. Nd2 {[%clk 0:02:29]}  Ngf6 {[%clk 0:02:49]} 11. Nxe7 {[%clk 0:02:27]}  Kxe7 {[%clk 0:02:42]} 12. O-O {[%clk 0:02:20]}  Re8 {[%clk 0:02:37]} 13. Nc4 {[%clk 0:02:05]}  Qc7 {[%clk 0:02:28]} 14. a4 {[%clk 0:01:43]}  Nxe4 {[%clk 0:02:26]} 15. f4 {[%clk 0:01:32]}  Nef6 {[%clk 0:02:07]} 16. Qd2 {[%clk 0:01:06]}  d5 {[%clk 0:02:04]} 17. Nxe5 {[%clk 0:01:06]}  Nxe5 {[%clk 0:02:01]} 18. fxe5 {[%clk 0:01:07]}  Qxe5 {[%clk 0:01:53]} 19. Bc5+ {[%clk 0:00:59]}  Kd8 {[%clk 0:01:51]} 20. Bb6+ {[%clk 0:00:58]}  Ke7 {[%clk 0:01:47]} 21. Qb4+ {[%clk 0:00:38]}  Kd7 {[%clk 0:01:47]} 22. Rae1 {[%clk 0:00:31]}  a5 {[%clk 0:01:38]} 23. Bb5+ {[%clk 0:00:30]} 1-0


[Site "https://www.chess.com"]

[Event "Titled Tuesday Blitz April 25 Early 2023"]
[White "Fuzesabonyilaci"]
[Black "Chernobay, Artem"]
[BlackFideId "4167406"]
[WhiteElo "2338"]
[BlackElo "2474"]
[Result "0-1"]
[Round "01"]
[TimeControl "180+2"]
[Date "2023.04.25"]
[WhiteClock "0:00:20"]
[BlackClock "0:00:09"]

1. e4 {[%clk 0:03:00]}  c5 {[%clk 0:02:59]} 2. Nf3 {[%clk 0:02:58]}  e6 {[%clk 0:02:59]} 3. d4 {[%clk 0:02:57]}  cxd4 {[%clk 0:03:00]} 4. Nxd4 {[%clk 0:02:58]}  Nf6 {[%clk 0:03:00]} 5. Nc3 {[%clk 0:02:57]}  Nc6 {[%clk 0:03:01]} 6. Qd3 {[%clk 0:02:53]}  Bb4 {[%clk 0:02:55]} 7. Bd2 {[%clk 0:02:42]}  O-O {[%clk 0:02:51]} 8. a3 {[%clk 0:02:37]}  Bxc3 {[%clk 0:02:30]} 9. Bxc3 {[%clk 0:02:38]}  d5 {[%clk 0:02:31]} 10. exd5 {[%clk 0:02:33]}  Nxd5 {[%clk 0:02:31]} 11. Nxc6 {[%clk 0:02:33]}  bxc6 {[%clk 0:02:31]} 12. O-O-O {[%clk 0:02:26]}  Qb6 {[%clk 0:02:25]} 13. Bd4 {[%clk 0:01:55]}  c5 {[%clk 0:02:24]} 14. Bc3 {[%clk 0:01:48]}  Bb7 {[%clk 0:02:09]} 15. Qg3 {[%clk 0:01:41]}  Nxc3 {[%clk 0:02:04]} 16. Qxc3 {[%clk 0:01:42]}  Rab8 {[%clk 0:01:56]} 17. Bd3 {[%clk 0:01:34]}  Bd5 {[%clk 0:01:53]} 18. f3 {[%clk 0:01:29]}  Qc6 {[%clk 0:01:50]} 19. Rhe1 {[%clk 0:01:26]}  Qc7 {[%clk 0:01:43]} 20. Qe5 {[%clk 0:01:22]}  Qa5 {[%clk 0:01:35]} 21. h4 {[%clk 0:01:08]}  Rb6 {[%clk 0:01:28]} 22. Re2 {[%clk 0:00:53]}  Rfb8 {[%clk 0:01:16]} 23. c4 {[%clk 0:00:50]}  Bc6 {[%clk 0:01:10]} 24. Rdd2 {[%clk 0:00:42]}  Be8 {[%clk 0:00:47]} 25. Bb1 {[%clk 0:00:28]}  f6 {[%clk 0:00:42]} 26. Qc7 {[%clk 0:00:21]}  Rxb2 {[%clk 0:00:10]} 27. Rxb2 {[%clk 0:00:20]}  Qxc7 {[%clk 0:00:09]} 0-1


[Site "https://www.chess.com"]

[Event "Titled Tuesday Blitz April 25 Early 2023"]
[White "KRUMMEL2008"]
[Black "crosky"]
[WhiteElo "2638"]
[BlackElo "2338"]
[Result "1-0"]
[Round "01"]
[TimeControl "180+2"]
[Date "2023.04.25"]
[WhiteClock "0:01:19"]
[BlackClock "0:02:02"]

1. e4 {[%clk 0:02:59]}  c6 {[%clk 0:02:59]} 2. d4 {[%clk 0:02:59]}  d5 {[%clk 0:02:59]} 3. e5 {[%clk 0:03:00]}  Bf5 {[%clk 0:02:59]} 4. Nf3 {[%clk 0:03:00]}  e6 {[%clk 0:03:00]} 5. Be2 {[%clk 0:03:00]}  Nd7 {[%clk 0:03:00]} 6. O-O {[%clk 0:02:59]}  Ne7 {[%clk 0:03:01]} 7. c3 {[%clk 0:03:00]}  h6 {[%clk 0:03:01]} 8. Na3 {[%clk 0:02:58]}  Qc7 {[%clk 0:02:55]} 9. Nc2 {[%clk 0:02:55]}  c5 {[%clk 0:02:52]} 10. dxc5 {[%clk 0:02:19]}  Nc6 {[%clk 0:02:52]} 11. b4 {[%clk 0:02:14]}  Ncxe5 {[%clk 0:02:49]} 12. Ncd4 {[%clk 0:02:09]}  Bh7 {[%clk 0:02:19]} 13. Nxe5 {[%clk 0:01:52]}  Nxe5 {[%clk 0:02:20]} 14. Bf4 {[%clk 0:01:49]}  a6 {[%clk 0:02:05]} 15. Bxe5 {[%clk 0:01:43]}  Qxe5 {[%clk 0:02:05]} 16. Qa4+ {[%clk 0:01:43]}  Kd8 {[%clk 0:02:05]} 17. c6 {[%clk 0:01:21]}  b5 {[%clk 0:02:04]} 18. Bxb5 {[%clk 0:01:20]}  Kc7 {[%clk 0:02:03]} 19. Qa5+ {[%clk 0:01:19]}  Kc8 {[%clk 0:02:02]} 20. Bxa6+ {[%clk 0:01:19]} 1-0


[Site "https://www.chess.com"]

[Event "Titled Tuesday Blitz April 25 Early 2023"]
[White "Pavlidis, Anastasios"]
[Black "Domingo Nunez, Ruben"]
[WhiteFideId "4208404"]
[BlackFideId "22245570"]
[WhiteElo "2210"]
[BlackElo "2404"]
[Result "0-1"]
[Round "01"]
[TimeControl "180+2"]
[Date "2023.04.25"]
[WhiteClock "0:01:17"]
[BlackClock "0:01:13"]

1. d4 {[%clk 0:02:58]}  g6 {[%clk 0:02:41]} 2. e4 {[%clk 0:02:57]}  Bg7 {[%clk 0:02:42]} 3. Nf3 {[%clk 0:02:56]}  c6 {[%clk 0:02:42]} 4. Nc3 {[%clk 0:02:55]}  d5 {[%clk 0:02:43]} 5. e5 {[%clk 0:02:55]}  f6 {[%clk 0:02:43]} 6. exf6 {[%clk 0:02:54]}  Nxf6 {[%clk 0:02:44]} 7. Bd3 {[%clk 0:02:53]}  Bg4 {[%clk 0:02:44]} 8. h3 {[%clk 0:02:52]}  Bxf3 {[%clk 0:02:45]} 9. Qxf3 {[%clk 0:02:53]}  O-O {[%clk 0:02:46]} 10. Qe2 {[%clk 0:02:53]}  Qd6 {[%clk 0:02:40]} 11. g3 {[%clk 0:02:52]}  Nbd7 {[%clk 0:02:39]} 12. Bf4 {[%clk 0:02:52]}  Qb4 {[%clk 0:02:38]} 13. O-O-O {[%clk 0:02:52]}  Rae8 {[%clk 0:02:26]} 14. a3 {[%clk 0:02:52]}  Qb6 {[%clk 0:02:23]} 15. h4 {[%clk 0:02:49]}  e5 {[%clk 0:02:19]} 16. dxe5 {[%clk 0:02:48]}  Nh5 {[%clk 0:02:19]} 17. e6 {[%clk 0:02:38]}  Nxf4 {[%clk 0:02:11]} 18. gxf4 {[%clk 0:02:37]}  Nc5 {[%clk 0:02:01]} 19. h5 {[%clk 0:02:19]}  Nxe6 {[%clk 0:01:46]} 20. hxg6 {[%clk 0:02:16]}  Nxf4 {[%clk 0:01:45]} 21. Qg4 {[%clk 0:02:00]}  h6 {[%clk 0:01:41]} 22. Rde1 {[%clk 0:01:45]}  Qxf2 {[%clk 0:01:32]} 23. Nd1 {[%clk 0:01:24]}  Nxd3+ {[%clk 0:01:12]} 24. cxd3 {[%clk 0:01:22]}  Rxe1 {[%clk 0:01:13]} 25. Rxe1 {[%clk 0:01:17]}  Qxe1 {[%clk 0:01:13]} 0-1


[Site "https://www.chess.com"]